fUSD/lending_fUSD_20240117
["ID","MTS","AMOUNT","RATE_DAILY","PERIOD"]
[311950713,1705512694353,-208.63,0.00022465,2]
[311950714,1705512694381,-620.15,0.00022465,2]
[311950715,1705512694406,-453.14,0.00022465,2]
[311950716,1705512694423,-318.94,0.00022465,2]
[311950717,1705512694462,-374.34,0.00022465,2]
[311950718,1705512694472,-530.34,0.00022465,2]
[311950719,1705512694492,-419.68,0.00022465,2]
[311950720,1705512694532,-165.94,0.00022465,2]
[311950721,1705512694565,-500.0,0.00022465,2]
[311950722,1705512694599,-296.04,0.00022465,2]
[311950723,1705512694618,-181.39,0.00022465,2]
[311950724,1705512694659,-500.0,0.00022465,2]
[311950725,1705512694678,-500.0,0.00022465,2]
[311950726,1705512694718,-183.49,0.00022465,2]
[311950727,1705512694745,-585.27,0.00022465,2]
[311950728,1705512694767,-500.0,0.00022465,2]
[311950729,1705512694797,-163.5,0.00022465,2]
[311950730,1705512694836,-640.15202318,0.00022465,2]
[311950731,1705512694876,-500.0,0.00022465,2]
[311950732,1705512694906,-500.0,0.00022465,2]
[311950733,1705512694927,-500.0,0.00022465,2]
[311950734,1705512694949,-411.74,0.00022465,2]
[311950735,1705512694982,-500.0,0.00022465,2]
[311950736,1705512695008,-500.0,0.00022465,2]
[311950737,1705512695034,-500.0,0.00022465,2]
[311950738,1705512695046,-286.96,0.00022465,2]
[311950739,1705512695078,-554.56,0.00022465,2]
[311950740,1705512695101,-294.14,0.00022465,2]
[311950741,1705512695127,-500.0,0.00022465,2]
[311950742,1705512695157,-500.0,0.00022465,2]
[311950743,1705512695190,-216.45,0.00022465,2]
[311950744,1705512695201,-522.99,0.00022465,2]
[311950745,1705512695235,-500.0,0.00022465,2]
[311950746,1705512695258,-313.93,0.00022465,2]
[311950747,1705512695270,-500.0,0.00022465,2]
[311950748,1705512695309,-500.0,0.00022465,2]
[311950749,1705512695321,-500.0,0.00022465,2]
[311950750,1705512695348,-354.22,0.00022465,2]
[311950751,1705512695370,-257.7,0.00022465,2]
[311950752,1705512695381,-300.97,0.00022465,2]
[311950753,1705512695405,-500.0,0.00022465,2]
[311950754,1705512695437,-500.0,0.00022465,2]
[311950755,1705512695454,-524.06,0.00022465,2]
[311950756,1705512695467,-500.0,0.00022465,2]
[311950757,1705512695480,-500.0,0.00022465,2]
[311950758,1705512695516,-500.0,0.00022465,2]
[311950759,1705512695552,-616.96,0.00022465,2]
[311950760,1705512695570,-500.0,0.00022465,2]
[311950761,1705512695586,-500.0,0.00022465,2]
[311950762,1705512695617,-547.04,0.00022465,2]
[311950763,1705512695639,-500.0,0.00022465,2]
[311950764,1705512695676,-505.64,0.00022465,2]
[311950765,1705512695700,-500.0,0.00022465,2]
[311950766,1705512695729,-373.4,0.00022465,2]
[311950767,1705512695757,-500.0,0.00022465,2]
[311950768,1705512695785,-500.0,0.00022465,2]
[311950769,1705512695828,-500.0,0.00022465,2]
[311950770,1705512695851,-500.0,0.00022465,2]
[311950771,1705512695881,-500.0,0.00022465,2]
[311950772,1705512695903,-528.16,0.00022465,2]
[311950773,1705512695915,-500.0,0.00022465,2]
[311950774,1705512695952,-500.0,0.00022465,2]
[311950775,1705512695979,-414.46,0.00022465,2]
[311950776,1705512696002,-500.0,0.00022465,2]
[311950777,1705512696028,-583.72,0.00022465,2]
[311950778,1705512696070,-536.85,0.00022465,2]
[311950779,1705512696084,-219.47,0.00022465,2]
[311950780,1705512696106,-488.82,0.00022465,2]
[311950781,1705512696127,-465.46,0.00022465,2]
[311950782,1705512696147,-500.0,0.00022465,2]
[311950783,1705512696170,-471.27,0.00022465,2]
[311950784,1705512696182,-420.85,0.00022465,2]
[311950785,1705512696215,-500.0,0.00022465,2]
[311950786,1705512696240,-500.0,0.00022465,2]
[311950787,1705512696266,-500.0,0.00022465,2]
[311950788,1705512696291,-500.0,0.00022465,2]
[311950789,1705512696341,-500.0,0.00022465,2]
[311950790,1705512696361,-419.24,0.00022465,2]
[311950791,1705512696391,-420.19,0.00022465,2]
[311950792,1705512696433,-500.0,0.00022465,2]
[311950793,1705512696457,-500.0,0.00022465,2]
[311950794,1705512696476,-500.0,0.00022465,2]
[311950795,1705512696503,-270.84,0.00022465,2]
[311950796,1705512696544,-402.6,0.00022465,2]
[311950797,1705512696573,-603.11,0.00022465,2]
[311950798,1705512696593,-326.45,0.00022465,2]
[311950799,1705512696618,-500.0,0.00022465,2]
[311950800,1705512696641,-500.0,0.00022465,2]
[311950801,1705512696667,-500.0,0.00022465,2]
[311950802,1705512696693,-221.06,0.00022465,2]
[311950803,1705512696720,-539.36,0.00022465,2]
[311950804,1705512696753,-500.0,0.00022465,2]
[311950805,1705512696776,-500.0,0.00022465,2]
[311950806,1705512696817,-500.0,0.00022465,2]
[311950807,1705512696850,-500.0,0.00022465,2]
[311950808,1705512696880,-298.55,0.00022465,2]
[311950809,1705512696913,-529.05,0.00022465,2]
[311950810,1705512696949,-500.0,0.00022465,2]
[311950811,1705512696970,-500.0,0.00022465,2]
[311950812,1705512696993,-500.0,0.00022465,2]
[311950813,1705512697015,-500.0,0.00022465,2]
[311950814,1705512697050,-500.0,0.00022465,2]
[311950815,1705512697073,-457.25,0.00022465,2]
[311950816,1705512697096,-500.0,0.00022465,2]
[311950817,1705512697132,-500.0,0.00022465,2]
[311950818,1705512697160,-500.0,0.00022465,2]
[311950819,1705512697187,-565.34,0.00022465,2]
[311950820,1705512697213,-500.0,0.00022465,2]
[311950821,1705512697234,-585.89,0.00022465,2]
[311950822,1705512697252,-500.0,0.00022465,2]
[311950823,1705512697295,-500.0,0.00022465,2]
[311950824,1705512697314,-402.61,0.00022465,2]
[311950825,1705512697352,-500.0,0.00022465,2]
[311950826,1705512697379,-500.0,0.00022465,2]
[311950827,1705512697397,-514.47,0.00022465,2]
[311950828,1705512697409,-213.14,0.00022465,2]
[311950829,1705512697450,-253.46,0.00022465,2]
[311950830,1705512697482,-337.37,0.00022465,2]
[311950831,1705512697508,-170.13,0.00022465,2]
[311950832,1705512697540,-500.0,0.00022465,2]
[311950833,1705512697583,-500.0,0.00022465,2]
[311950834,1705512697637,-300.19,0.00022465,2]
[311950835,1705512697661,-500.0,0.00022465,2]
[311950836,1705512697681,-500.0,0.00022465,2]
[311950837,1705512697710,-500.0,0.00022465,2]
[311950838,1705512697750,-357.5,0.00022465,2]
[311950839,1705512697769,-338.77,0.00022465,2]
[311950840,1705512697798,-200.54134064,0.00022465,2]
[311950841,1705512697823,-500.0,0.00022465,2]
[311950842,1705512697839,-500.0,0.00022465,2]
[311950843,1705512697870,-500.0,0.00022465,2]
[311950844,1705512697890,-500.0,0.00022465,2]
[311950845,1705512697923,-500.0,0.00022465,2]
[311950846,1705512697956,-500.0,0.00022465,2]
[311950847,1705512697975,-500.0,0.00022465,2]
[311950848,1705512698005,-500.0,0.00022465,2]
[311950849,1705512698037,-500.0,0.00022465,2]
[311950850,1705512698063,-500.0,0.00022465,2]
[311950851,1705512698083,-501.53,0.00022465,2]
[311950852,1705512698105,-500.0,0.00022465,2]
[311950853,1705512698128,-500.0,0.00022465,2]
[311950854,1705512698165,-500.0,0.00022465,2]
[311950855,1705512698188,-502.33,0.00022465,2]
[311950856,1705512698225,-371.91,0.00022465,2]
[311950857,1705512698241,-430.85,0.00022465,2]
[311950858,1705512698288,-500.0,0.00022465,2]
[311950859,1705512698307,-500.0,0.00022465,2]
[311950860,1705512698333,-500.0,0.00022465,2]
[311950861,1705512698355,-500.0,0.00022465,2]
[311950862,1705512698388,-500.0,0.00022465,2]
[311950863,1705512698609,-167.14,0.00022465,2]
[311950864,1705512698659,-500.0,0.00022465,2]
[311950865,1705512698682,-348.7,0.00022465,2]
[311950866,1705512698711,-373.66,0.00022465,2]
[311950867,1705512698735,-619.11,0.00022465,2]
[311950868,1705512698758,-500.0,0.00022465,2]
[311950869,1705512698784,-500.0,0.00022465,2]
[311950870,1705512698814,-500.0,0.00022465,2]
[311950871,1705512698833,-500.0,0.00022465,2]
[311950872,1705512698864,-500.0,0.00022465,2]
[311950873,1705512698884,-327.09,0.00022465,2]
[311950874,1705512698901,-500.0,0.00022465,2]
[311950875,1705512698921,-586.2,0.00022465,2]
[311950876,1705512698942,-500.0,0.00022465,2]
[311950877,1705512698982,-500.0,0.00022465,2]
[311950878,1705512698997,-540.93,0.00022465,2]
[311950879,1705512699015,-415.68,0.00022465,2]
[311950880,1705512699042,-500.0,0.00022465,2]
[311950881,1705512699057,-481.08,0.00022465,2]
[311950882,1705512699069,-526.21,0.00022465,2]
[311950883,1705512699082,-555.29,0.00022465,2]
[311950884,1705512699104,-628.35,0.00022465,2]
[311950885,1705512699128,-197.57,0.00022465,2]
[311950886,1705512699147,-500.0,0.00022465,2]
[311950887,1705512699160,-500.0,0.00022465,2]
[311950888,1705512699189,-500.0,0.00022465,2]
[311950889,1705512699203,-500.0,0.00022465,2]
[311950890,1705512699216,-500.0,0.00022465,2]
[311950891,1705512699240,-500.0,0.00022465,2]
[311950892,1705512699267,-542.43,0.00022465,2]
[311950893,1705512699288,-500.0,0.00022465,2]
[311950894,1705512699301,-176.88,0.00022465,2]
[311950895,1705512699318,-421.11,0.00022465,2]
[311950896,1705512699339,-468.51,0.00022465,2]
[311950897,1705512699377,-500.0,0.00022465,2]
[311950898,1705512699398,-503.72,0.00022465,2]
[311950899,1705512699419,-500.0,0.00022465,2]
[311950900,1705512699451,-500.0,0.00022465,2]
[311950901,1705512699464,-500.0,0.00022465,2]
[311950902,1705512699499,-500.0,0.00022465,2]
[311950903,1705512699517,-500.0,0.00022465,2]
[311950904,1705512699550,-500.0,0.00022465,2]
[311950905,1705512699566,-161.49241399,0.00022465,2]
[311950906,1705512699598,-500.0,0.00022465,2]
[311950907,1705512699622,-500.0,0.00022465,2]
[311950908,1705512699650,-294.93,0.00022465,2]
[311950909,1705512699677,-500.0,0.00022465,2]
[311950910,1705512699694,-500.0,0.00022465,2]
[311950911,1705512699727,-163.61,0.00022465,2]
[311950912,1705512699746,-500.0,0.00022465,2]
[311950913,1705512699762,-511.84,0.00022465,2]
[311950914,1705512699795,-307.55,0.00022465,2]
[311950915,1705512699825,-539.25,0.00022465,2]
[311950916,1705512699855,-184.16,0.00022465,2]
[311950917,1705512699886,-601.5,0.00022465,2]
[311950918,1705512699902,-500.0,0.00022465,2]
[311950919,1705512699917,-500.0,0.00022465,2]
[311950920,1705512699967,-500.0,0.00022465,2]
[311950921,1705512699986,-605.04,0.00022465,2]
[311950922,1705512700019,-595.35,0.00022465,2]
[311950923,1705512700057,-592.03,0.00022465,2]
[311950924,1705512700074,-500.0,0.00022465,2]
[311950925,1705512700097,-395.97,0.00022465,2]
[311950926,1705512700128,-517.21991379,0.00022465,2]
[311950927,1705512700148,-500.0,0.00022465,2]
[311950928,1705512700160,-500.0,0.00022465,2]
[311950929,1705512700184,-561.94,0.00022465,2]
[311950930,1705512700202,-500.0,0.00022465,2]
[311950931,1705512700232,-500.0,0.00022465,2]
[311950932,1705512700256,-500.0,0.00022465,2]
[311950933,1705512700280,-500.0,0.00022465,2]
[311950934,1705512700301,-267.55,0.00022465,2]
[311950935,1705512700317,-425.56,0.00022465,2]
[311950936,1705512700360,-500.0,0.00022465,2]
[311950937,1705512700383,-230.7,0.00022465,2]
[311950938,1705512700404,-500.0,0.00022465,2]
[311950939,1705512700422,-500.0,0.00022465,2]
[311950940,1705512700453,-344.71,0.00022465,2]
[311950941,1705512700479,-500.0,0.00022465,2]
[311950942,1705512700503,-323.8,0.00022465,2]
[311950943,1705512700539,-500.0,0.00022465,2]
[311950944,1705512700562,-500.0,0.00022465,2]
[311950945,1705512700576,-648.63,0.00022465,2]
[311950946,1705512700598,-500.0,0.00022465,2]
[311950947,1705512700618,-500.0,0.00022465,2]
[311950948,1705512700645,-500.0,0.00022465,2]
[311950949,1705512700663,-500.0,0.00022465,2]
[311950950,1705512700689,-190.18,0.00022465,2]
[311950951,1705512700709,-500.0,0.00022465,2]
[311950952,1705512700748,-312.53,0.00022465,2]
[311950953,1705512700774,-457.61,0.00022465,2]
[311950954,1705512700793,-500.0,0.00022465,2]
[311950955,1705512700819,-274.71,0.00022465,2]
[311950956,1705512700840,-500.0,0.00022465,2]
[311950957,1705512700859,-500.0,0.00022465,2]
[311950958,1705512700882,-287.95,0.00022465,2]
[311950959,1705512700911,-500.0,0.00022465,2]
[311950960,1705512700941,-500.0,0.00022465,2]
[311950961,1705512700968,-500.0,0.00022465,2]
[311950962,1705512700983,-500.0,0.00022465,2]
[311950963,1705512701019,-237.29,0.00022465,2]
[311950964,1705512701054,-500.0,0.00022465,2]
[311950965,1705512701075,-527.95,0.00022465,2]
[311950966,1705512701099,-500.0,0.00022465,2]
[311950967,1705512701126,-500.0,0.00022465,2]
[311950968,1705512701150,-500.0,0.00022465,2]
[311950969,1705512701175,-500.0,0.00022465,2]
[311950970,1705512701195,-500.0,0.00022465,2]
[311950971,1705512701218,-500.0,0.00022465,2]
[311950972,1705512701244,-500.0,0.00022465,2]
[311950973,1705512701283,-500.0,0.00022465,2]
[311950974,1705512701310,-741.37,0.00022465,2]
[311950975,1705512701338,-500.0,0.00022465,2]
[311950976,1705512701357,-500.0,0.00022465,2]
[311950977,1705512701378,-500.0,0.00022465,2]
[311950978,1705512701397,-6336.0,0.00022465,2]
[311950979,1705512701425,-500.0,0.00022465,2]
[311950980,1705512701452,-500.0,0.00022465,2]
[311950981,1705512701484,-500.0,0.00022465,2]
[311950982,1705512701504,-500.0,0.00022465,2]
[311950983,1705512701527,-500.0,0.00022465,2]
[311950984,1705512701551,-500.0,0.00022465,2]
[311950985,1705512701577,-500.0,0.00022465,2]
[311950986,1705512701607,-500.0,0.00022465,2]
[311950987,1705512701643,-500.0,0.00022465,2]
[311950988,1705512701659,-275.71,0.00022465,2]
[311950989,1705512701697,-533.39,0.00022465,2]
[311950990,1705512701718,-500.0,0.00022465,2]
[311950991,1705512701737,-500.0,0.00022465,2]
[311950992,1705512701757,-500.0,0.00022465,2]
[311950993,1705512701798,-839.04,0.00022465,2]
[311950994,1705512701824,-500.0,0.00022465,2]
[311950995,1705512702038,-159.14,0.00022465,2]
[311950996,1705512702099,-500.0,0.00022465,2]
[311950997,1705512702128,-197.93,0.00022465,2]
[311950998,1705512702148,-500.0,0.00022465,2]
[311950999,1705512702177,-500.0,0.00022465,2]
[311951000,1705512702206,-500.0,0.00022465,2]
[311951001,1705512702225,-500.0,0.00022465,2]
[311951002,1705512702260,-500.0,0.00022465,2]
[311951003,1705512702281,-500.0,0.00022465,2]
[311951004,1705512702520,-500.0,0.00022465,2]
[311951005,1705512702549,-428.65,0.00022465,2]
[311951006,1705512702579,-500.0,0.00022465,2]
[311951007,1705512702609,-500.0,0.00022465,2]
[311951008,1705512702635,-500.0,0.00022465,2]
[311951009,1705512702668,-616.77,0.00022465,2]
[311951010,1705512702690,-500.0,0.00022465,2]
[311951011,1705512702709,-500.0,0.00022465,2]
[311951012,1705512702737,-540.6,0.00022465,2]
[311951013,1705512702757,-480.0,0.00022465,2]
[311951014,1705512702781,-500.0,0.00022465,2]
[311951015,1705512702802,-658.38,0.00022465,2]
[311951016,1705512702820,-500.0,0.00022465,2]
[311951017,1705512702845,-500.0,0.00022465,2]
[311951018,1705512702874,-500.0,0.00022465,2]
[311951019,1705512702890,-500.0,0.00022465,2]
[311951020,1705512702913,-548.32,0.00022465,2]
[311951021,1705512702931,-381.5,0.00022465,2]
[311951022,1705512702953,-500.0,0.00022465,2]
[311951023,1705512702992,-500.0,0.00022465,2]
[311951024,1705512703017,-358.85,0.00022465,2]
[311951025,1705512703049,-500.0,0.00022465,2]
[311951026,1705512703075,-500.0,0.00022465,2]
[311951027,1705512703098,-500.0,0.00022465,2]
[311951028,1705512703123,-500.0,0.00022465,2]
[311951029,1705512703140,-500.0,0.00022465,2]
[311951030,1705512703176,-1346.65,0.00022465,2]
[311951031,1705512703196,-500.0,0.00022465,2]
[311951032,1705512703225,-500.0,0.00022465,2]
[311951033,1705512703245,-500.0,0.00022465,2]
[311951034,1705512703265,-500.0,0.00022465,2]
[311951035,1705512703294,-500.0,0.00022465,2]
[311951036,1705512703312,-500.0,0.00022465,2]
[311951037,1705512703338,-500.0,0.00022465,2]
[311951038,1705512703357,-500.0,0.00022465,2]
[311951039,1705512703385,-294.95,0.00022465,2]
[311951040,1705512703406,-229.45,0.00022465,2]
[311951041,1705512703424,-500.0,0.00022465,2]
[311951042,1705512703445,-500.0,0.00022465,2]
[311951043,1705512703474,-500.0,0.00022465,2]
[311951044,1705512703503,-318.72,0.00022465,2]
[311951045,1705512703525,-500.0,0.00022465,2]
[311951046,1705512703556,-500.0,0.00022465,2]
[311951047,1705512703580,-500.0,0.00022465,2]
[311951048,1705512703605,-618.55,0.00022465,2]
[311951049,1705512703619,-500.0,0.00022465,2]
[311951050,1705512703644,-558.29,0.00022465,2]
[311951051,1705512703672,-2577.18,0.00022465,2]
[311951052,1705512703686,-500.0,0.00022465,2]
[311951053,1705512703719,-500.0,0.00022465,2]
[311951054,1705512703754,-500.0,0.00022465,2]
[311951055,1705512703780,-500.0,0.00022465,2]
[311951056,1705512703804,-500.0,0.00022465,2]
[311951057,1705512703824,-500.0,0.00022465,2]
[311951058,1705512703843,-500.0,0.00022465,2]
[311951059,1705512703869,-645.0,0.00022465,2]
[311951060,1705512703882,-500.0,0.00022465,2]
[311951061,1705512703911,-500.0,0.00022465,2]
[311951062,1705512703923,-500.0,0.00022465,2]
[311951063,1705512703961,-500.0,0.00022465,2]
[311951064,1705512703975,-500.0,0.00022465,2]
[311951065,1705512703995,-500.0,0.00022465,2]
[311951066,1705512704027,-500.0,0.00022465,2]
[311951067,1705512704040,-500.0,0.00022465,2]
[311951068,1705512704068,-500.0,0.00022465,2]
[311951069,1705512704091,-500.0,0.00022465,2]
[311951070,1705512704126,-500.0,0.00022465,2]
[311951071,1705512704139,-500.0,0.00022465,5]
[311951072,1705512704175,-375.59,0.00022465,2]
[311951073,1705512704206,-184.33,0.00022465,2]
[311951074,1705512704225,-500.0,0.00022465,2]
[311951075,1705512704248,-500.0,0.00022465,2]
[311951076,1705512704265,-500.0,0.00022465,2]
[311951077,1705512704298,-500.0,0.00022465,2]
[311951078,1705512704321,-500.0,0.00022465,2]
[311951079,1705512704343,-500.0,0.00022465,2]
[311951080,1705512704357,-500.0,0.00022465,2]
[311951081,1705512704372,-500.0,0.00022465,2]
[311951082,1705512704403,-500.0,0.00022465,2]
[311951083,1705512704421,-415.49,0.00022465,2]
[311951084,1705512704437,-500.0,0.00022465,2]
[311951085,1705512704477,-615.24,0.00022465,2]
[311951086,1705512704496,-500.0,0.00022465,2]
[311951087,1705512704526,-500.0,0.00022465,2]
[311951088,1705512704545,-701.74,0.00022465,2]
[311951089,1705512704580,-500.0,0.00022465,2]
[311951090,1705512704607,-500.0,0.00022465,2]
[311951091,1705512704629,-500.0,0.00022465,2]
[311951092,1705512704645,-500.0,0.00022465,2]
[311951093,1705512704679,-500.0,0.00022465,2]
[311951094,1705512704701,-500.0,0.00022465,2]
[311951095,1705512704713,-2082.37,0.00022465,5]
[311951096,1705512704770,-500.0,0.00022465,2]
[311951097,1705512704795,-500.0,0.00022465,2]
[311951098,1705512704827,-500.0,0.00022465,2]
[311951099,1705512704853,-278.71,0.00022465,2]
[311951100,1705512704880,-500.0,0.00022465,2]
[311951101,1705512704901,-617.19,0.00022465,2]
[311951102,1705512704923,-500.0,0.00022465,2]
[311951103,1705512704942,-468.34,0.00022465,2]
[311951104,1705512704966,-500.0,0.00022465,2]
[311951105,1705512705002,-500.0,0.00022465,2]
[311951106,1705512705017,-270.13,0.00022465,2]
[311951107,1705512705065,-500.0,0.00022465,2]
[311951108,1705512705084,-500.0,0.00022465,2]
[311951109,1705512705101,-645.25,0.00022465,2]
[311951110,1705512705125,-500.0,0.00022465,2]
[311951111,1705512705157,-513.89,0.00022465,2]
[311951112,1705512705184,-222.88,0.00022465,2]
[311951113,1705512705207,-500.0,0.00022465,2]
[311951114,1705512705227,-500.0,0.00022465,2]
[311951115,1705512705476,-500.0,0.00022465,2]
[311951116,1705512705494,-500.0,0.00022465,2]
[311951117,1705512705531,-500.0,0.00022465,2]
[311951118,1705512705567,-500.0,0.00022465,2]
[311951119,1705512705598,-913.31,0.00022465,2]
[311951120,1705512705623,-500.0,0.00022465,2]
[311951121,1705512705654,-500.0,0.00022465,2]
[311951122,1705512705689,-456.79,0.00022465,2]
[311951123,1705512705712,-437.28,0.00022465,2]
[311951124,1705512705736,-500.0,0.00022465,2]
[311951125,1705512705758,-500.0,0.00022465,2]
[311951126,1705512705779,-183.86,0.00022465,2]
[311951127,1705512705795,-500.0,0.00022465,2]
[311951128,1705512705830,-580.61,0.00022465,2]
[311951129,1705512705861,-500.0,0.00022465,2]
[311951130,1705512705887,-500.0,0.00022465,2]
[311951131,1705512705914,-500.0,0.00022465,2]
[311951132,1705512705946,-500.0,0.00022465,2]
[311951133,1705512705961,-500.0,0.00022465,2]
[311951134,1705512705988,-474.25,0.00022465,2]
[311951135,1705512706015,-487.31,0.00022465,2]
[311951136,1705512706036,-500.0,0.00022465,2]
[311951137,1705512706060,-500.0,0.00022465,2]
[311951138,1705512706082,-500.0,0.00022465,2]
[311951139,1705512706110,-500.0,0.00022465,2]
[311951140,1705512706132,-500.0,0.00022465,2]
[311951141,1705512706156,-500.0,0.00022465,2]
[311951142,1705512706173,-500.0,0.00022465,2]
[311951143,1705512706199,-500.0,0.00022465,2]
[311951144,1705512706228,-500.0,0.00022465,2]
[311951145,1705512706254,-500.0,0.00022465,2]
[311951146,1705512706278,-500.0,0.00022465,2]
[311951147,1705512706308,-500.0,0.00022465,2]
[311951148,1705512706345,-3526.5,0.00022465,2]
[311951149,1705512706364,-500.0,0.00022465,2]
[311951150,1705512706389,-3008.0,0.00022466,2]
[311951151,1705512706422,-152.74,0.00022493,2]
[311951152,1705512706445,-12296.30043057,0.000225,2]
[311951153,1705512706468,-417.73,0.00022522,2]
[311951154,1705512706490,-152.41,0.00022588,2]
[311951155,1705512706523,-417.73,0.00022736,2]
[311951156,1705512706543,-547.54,0.00022739,2]
[311951157,1705512706564,-500.0,0.00022739,2]
[311951158,1705512706587,-168.27,0.00022739,2]
[311951159,1705512706601,-305.62,0.00022739,2]
[311951160,1705512706639,-421.24,0.00022739,2]
[311951161,1705512706658,-245.32,0.00022739,2]
[311951162,1705512706674,-467.83,0.00022739,2]
[311951163,1705512706691,-500.0,0.00022739,2]
[311951164,1705512706733,-500.0,0.00022739,2]
[311951165,1705512706748,-500.0,0.00022739,2]
[311951166,1705512706777,-500.0,0.00022739,2]
[311951167,1705512706796,-624.9,0.00022739,2]
[311951168,1705512706807,-500.0,0.00022739,2]
[311951169,1705512706835,-261.8,0.00022739,2]
[311951170,1705512706851,-500.0,0.00022739,2]
[311951171,1705512706876,-522.6,0.00022739,2]
[311951172,1705512706889,-221.67,0.00022739,2]
[311951173,1705512706912,-616.9,0.00022739,2]
[311951174,1705512706937,-186.12,0.00022739,2]
[311951175,1705512706952,-341.52,0.00022739,2]
[311951176,1705512706984,-637.15,0.00022739,2]
[311951177,1705512707018,-250.98,0.00022739,2]
[311951178,1705512707043,-271.72,0.00022739,2]
[311951179,1705512707069,-500.0,0.00022739,2]
[311951180,1705512707090,-500.0,0.00022739,2]
[311951181,1705512707122,-500.0,0.00022739,2]
[311951182,1705512707151,-500.0,0.00022739,2]
[311951183,1705512707170,-360.93,0.00022739,2]
[311951184,1705512707189,-500.0,0.00022739,2]
[311951185,1705512707207,-286.26,0.00022739,2]
[311951186,1705512707226,-498.79,0.00022739,2]
[311951187,1705512707258,-500.0,0.00022739,2]
[311951188,1705512707282,-500.0,0.00022739,2]
[311951189,1705512707314,-500.0,0.00022739,2]
[311951190,1705512707339,-500.0,0.00022739,2]
[311951191,1705512707361,-500.0,0.00022739,2]
[311951192,1705512707391,-500.0,0.00022739,2]
[311951193,1705512707412,-500.0,0.00022739,2]
[311951194,1705512707425,-500.0,0.00022739,2]
[311951195,1705512707463,-500.0,0.00022739,2]
[311951196,1705512707491,-500.0,0.00022739,2]
[311951197,1705512707508,-445.94,0.00022739,2]
[311951198,1705512707535,-500.0,0.00022739,2]
[311951199,1705512707576,-500.0,0.00022739,2]
[311951200,1705512707593,-500.0,0.00022739,2]
[311951201,1705512707610,-500.0,0.00022739,2]
[311951202,1705512707629,-500.0,0.00022739,2]
[311951203,1705512707653,-500.0,0.00022739,2]
[311951204,1705512707896,-500.0,0.00022739,2]
[311951205,1705512707913,-500.0,0.00022739,2]
[311951206,1705512707946,-280.99,0.00022739,2]
[311951207,1705512707965,-465.68,0.00022739,2]
[311951208,1705512707998,-500.0,0.00022739,2]
[311951209,1705512708016,-500.0,0.00022739,2]
[311951210,1705512708038,-428.54,0.00022739,2]
[311951211,1705512708054,-277.89,0.00022739,2]
[311951212,1705512708068,-500.0,0.00022739,2]